bitfinex/quotes_ETHUSD_20220310
["timestamp","ask_amount","ask_price","bid_price","bid_amount"]
[1646925350235,0.05762013,2607.2,2606.9,0.01644396]
[1646925351079,0.76552921,2607.2,2606.9,0.01644396]
[1646925351278,0.05084231,2607.1,2606.9,0.01644396]
[1646925351481,0.70790908,2607.0,2606.1,0.01644396]
[1646925351679,0.4078,2606.5,2606.1,0.01644396]
[1646925352476,0.4078,2606.5,2606.2,0.87615499]
[1646925352677,2.94178721,2606.9,2606.2,0.87615499]
[1646925352678,0.05298666,2606.8,2606.2,0.87615499]
[1646925352880,1.92076207,2607.1,2606.2,0.87615499]
[1646925352881,0.70790908,2607.1,2606.4,0.07270232]
[1646925353078,0.75992157,2607.2,2606.4,0.07270232]
[1646925353280,0.75992157,2607.2,2606.6,12.1238]
[1646925353281,0.05201249,2607.2,2606.6,12.1238]
[1646925353481,0.70790908,2607.5,2606.7,12.201]
[1646925353687,4.08445632,2607.7,2606.8,68.5]
[1646925353688,0.1917,2607.7,2606.8,68.5]
[1646925353881,1.42965993,2608.0,2607.7,0.88557032]
[1646925353882,0.94945632,2607.9,2607.7,0.88557032]
[1646925354084,0.1917,2608.2,2607.2,93.07037605]
[1646925354333,0.70380376,2608.1,2607.4,0.3838]
[1646925354530,0.3836,2608.3,2607.6,0.07847411]
[1646925354531,0.70242356,2608.2,2607.6,0.07847411]
[1646925354737,0.70242356,2608.2,2607.8,13.65753]
[1646925354931,4.16485993,2609.1,2607.8,13.65753]
[1646925354932,0.0013802,2608.6,2608.1,0.95871]
[1646925355133,1.47437454,2609.2,2608.2,3.5]
[1646925355134,0.05171461,2609.2,2608.2,3.5]
[1646925355332,0.05171461,2609.2,2608.4,27.5]
[1646925355533,0.1051983,2609.8,2609.1,2.99413001]
[1646925355734,1.33339405,2610.4,2609.6,12.41588]
[1646925355735,2.22228088,2610.3,2609.6,12.41588]
[1646925355936,0.00135174,2610.2,2610.0,11.74]
[1646925356132,0.04632732,2610.4,2610.3,100.74]
[1646925356133,2.732e-05,2610.4,2610.3,100.74]
[1646925356330,2.732e-05,2610.4,2610.3,12.5848]
[1646925356533,1.02884011,2610.8,2610.4,89.5]
[1646925356534,0.06365542,2610.8,2610.4,89.5]
[1646925356733,0.03696806,2610.9,2610.6,14.0]
[1646925356932,0.03696806,2610.9,2610.7,3.911]
[1646925357131,0.03696806,2610.9,2610.8,0.0780134]
[1646925357334,0.03696806,2610.9,2610.8,0.5390134]
[1646925357532,0.0864209,2610.9,2610.8,0.5390134]
[1646925358182,0.0864209,2610.9,2610.8,0.461]
[1646925358384,0.0864209,2610.9,2610.8,0.55100191]
[1646925358582,0.0864209,2610.9,2610.8,0.461]
[1646925358784,1.2239673,2610.9,2610.8,0.461]
[1646925360187,1.23076991,2610.9,2610.8,0.461]
[1646925360586,0.09322351,2610.9,2610.8,0.461]
[1646925360985,0.09322351,2610.9,2610.3,0.461]
[1646925361288,0.34476999,2610.7,2610.2,0.01622852]
[1646925361689,0.23924757,2610.6,2610.2,0.01622852]
[1646925361926,3.0,2610.4,2609.0,0.08819692]
[1646925362127,0.9587405,2610.1,2608.3,3.5]
[1646925362325,0.9587405,2610.1,2608.4,0.6525]
[1646925362326,0.1915,2610.1,2608.4,0.6525]
[1646925362631,2.4262,2610.6,2608.7,2.99413001]
[1646925362632,0.04568877,2610.0,2608.7,2.99413001]
[1646925362826,0.04433703,2610.0,2609.1,12.69829]
[1646925363026,0.00548567,2610.5,2609.3,1.952106]
[1646925363027,0.04376861,2609.9,2609.3,1.952106]
[1646925363233,0.0603039,2610.9,2609.9,93.0]
[1646925363432,0.05630756,2611.1,2610.2,93.0]
[1646925363630,0.05630756,2611.1,2610.5,90.0]
[1646925363631,0.02358575,2611.1,2610.5,90.0]
[1646925363829,0.02358575,2611.1,2610.8,0.01277237]
[1646925363830,0.0222446,2611.1,2610.8,0.01277237]
[1646925364031,4.46e-05,2611.1,2610.9,1.4172326]
[1646925364231,0.0852175,2611.7,2611.1,75.5]
[1646925364435,0.72513953,2612.6,2611.3,75.5]
[1646925364436,0.0285656,2612.6,2611.3,75.5]
[1646925364632,0.0196527,2613.0,2611.7,93.0]
[1646925364837,0.20478363,2613.2,2612.2,1.0]
[1646925365037,0.20478363,2613.2,2612.3,4.03449359]
[1646925365239,0.39608363,2613.2,2612.3,0.51485878]
[1646925365432,3.5,2613.1,2612.3,0.4426773]
[1646925365682,3.5,2613.1,2611.5,2.4702]
[1646925365683,3.0,2613.0,2611.4,0.07028121]
[1646925365885,3.0,2613.0,2611.2,0.5]
[1646925365886,3.51267496,2612.9,2611.2,0.5]
[1646925366079,0.1913,2612.8,2612.2,1.0]
[1646925366479,0.1913,2612.8,2611.1,1.3519]
[1646925366480,3.88523037,2612.8,2611.1,1.3519]
[1646925366682,0.90611831,2611.8,2611.2,0.5]
[1646925367280,0.90611831,2611.8,2611.1,0.8909]
[1646925367480,0.1913,2611.7,2611.1,0.8909]
[1646925367683,1.03540913,2611.4,2611.1,0.8909]
[1646925367885,0.00413773,2611.6,2611.1,0.8909]
[1646925368885,0.00413782,2611.5,2611.1,0.8909]
[1646925369085,0.00413782,2611.5,2611.1,1.3519]
[1646925369525,0.89054747,2611.5,2611.1,1.3519]
[1646925369725,0.20784881,2611.9,2611.1,1.3519]
[1646925369926,0.01654881,2611.9,2611.1,1.3519]
[1646925370127,0.00413785,2611.4,2611.1,1.3519]
[1646925370832,3.785e-05,2611.4,2611.2,0.06842121]
[1646925371030,0.20478363,2613.2,2611.3,0.461]
[1646925371031,0.00132188,2612.2,2611.3,0.461]
[1646925371226,0.00132188,2612.6,2611.6,0.94057662]
[1646925371427,5.8204,2612.9,2611.7,0.461]
[1646925371428,0.00132188,2612.8,2611.7,0.461]
[1646925371630,2.9111,2613.1,2611.7,0.461]
[1646925371631,0.00132188,2613.0,2611.7,0.461]
[1646925371835,2.9111,2613.1,2611.4,0.93835763]
[1646925371836,6.41242188,2613.1,2611.4,0.93835763]
[1646925372034,3.5,2613.0,2611.5,0.461]
[1646925372231,3.5,2612.9,2611.6,0.08553859]
[1646925372435,0.00401282,2612.4,2611.8,1.10324332]
[1646925372632,0.00401282,2612.4,2611.9,0.54597544]
[1646925373093,0.00401282,2612.4,2611.9,0.461]
[1646925373283,0.07587904,2613.3,2611.9,0.461]
[1646925373684,0.1913,2613.2,2611.9,0.461]
[1646925374087,0.88723644,2612.1,2611.9,0.461]
[1646925374484,0.88723644,2612.1,2611.5,0.461]
[1646925375088,0.87334926,2611.7,2611.5,0.461]
[1646925375387,3.5,2612.9,2611.5,0.48657726]
[1646925375588,3.80131521,2612.9,2611.5,0.48657726]
[1646925375785,3.80131521,2612.9,2611.5,0.31209419]
[1646925375984,3.80131521,2612.9,2611.5,0.24068313]
[1646925376185,0.89258328,2612.0,2611.5,0.24068313]
[1646925376585,3.50131521,2612.9,2611.6,1.15050201]
[1646925376825,3.50131521,2612.9,2611.7,0.461]
[1646925377226,0.01008349,2612.5,2611.4,0.02559065]
[1646925377428,3.0,2612.0,2611.4,0.02559065]
[1646925377628,3.70370818,2611.9,2611.4,0.02559065]
[1646925377826,0.1913,2611.9,2611.4,0.02559065]
[1646925378026,0.1913,2611.9,2611.5,0.98917995]
[1646925378234,0.1913,2612.1,2611.4,0.06972065]
[1646925378431,0.1913,2612.2,2611.8,0.04413]
[1646925378630,0.1913,2612.4,2611.4,0.06972065]
[1646925379331,1.03402896,2611.5,2611.4,0.02559065]
[1646925379531,0.3838,2612.2,2611.4,0.02559065]
[1646925379532,3.6913,2612.1,2611.4,0.02559065]
[1646925379734,0.00131521,2612.1,2611.4,0.02559065]
[1646925379929,3.5,2612.3,2611.4,0.02559065]
[1646925380134,0.1913,2612.2,2611.6,0.02467916]
[1646925380591,1.07478871,2611.7,2611.6,0.02467916]
[1646925382984,0.3838,2612.2,2611.6,0.02467916]
[1646925382985,0.95902521,2612.3,2611.6,0.02467916]
[1646925383184,0.03196719,2612.5,2611.6,0.02467916]
[1646925383386,0.03196719,2612.5,2612.2,0.04413]
[1646925383387,0.01532599,2612.5,2612.2,0.04413]
[1646925383583,0.01532599,2612.5,2611.6,0.02467916]
[1646925384184,0.89848545,2612.3,2611.8,1.21521275]
[1646925384429,0.97239965,2612.6,2612.2,0.04413]
[1646925384635,0.97239965,2612.6,2611.8,1.21521275]
[1646925384636,0.01480965,2612.6,2611.8,1.21521275]
[1646925384832,0.01480965,2612.6,2612.4,0.04413]
[1646925385032,0.01480965,2612.6,2612.0,0.04413]
[1646925385433,1.10344163,2612.3,2612.0,0.04413]
[1646925385633,1.10344163,2612.3,2611.7,0.03777418]
[1646925385836,1.10344163,2612.3,2611.6,0.02467916]
[1646925386435,3.5,2612.2,2611.6,0.02467916]
[1646925386635,1.19814287,2611.8,2611.6,0.02467916]
[1646925386834,1.19814287,2611.8,2611.6,0.06245334]
[1646925387235,2.10709,2612.2,2611.6,0.02467916]
[1646925387635,1.91538,2612.3,2611.6,0.02467916]
[1646925387836,3.50504645,2612.8,2611.6,0.02467916]
[1646925387837,0.00131521,2612.8,2611.6,0.02467916]
[1646925388094,0.01492602,2612.5,2611.7,12.201]
[1646925388288,0.01492602,2612.5,2612.4,0.03777418]
[1646925388487,0.01492602,2612.5,2612.1,0.03777418]
[1646925388691,0.01492602,2612.5,2612.1,0.57411007]
[1646925388886,1.10242813,2612.8,2612.1,0.03777418]
[1646925389088,1.10242813,2612.8,2611.8,0.08372219]
[1646925389287,1.10242813,2612.8,2612.4,0.03777418]
[1646925389288,1.106469,2612.8,2612.4,0.03777418]
[1646925390089,1.10242813,2612.8,2612.4,0.03777418]
[1646925390488,0.00404102,2612.8,2611.9,0.98183357]
[1646925390789,0.00404102,2612.8,2612.1,0.03777418]
[1646925390991,0.19534102,2612.8,2612.1,0.03777418]
[1646925391591,0.00404102,2612.8,2612.5,0.03777418]
[1646925391846,0.00386404,2612.8,2612.5,0.03777418]
[1646925392645,0.1913,2613.0,2612.5,0.03777418]
[1646925392845,0.00355199,2612.8,2612.5,0.03777418]
[1646925393251,0.00355199,2612.8,2612.0,0.461]
[1646925393547,0.00355199,2612.8,2612.5,0.03777418]
[1646925393947,0.00355199,2612.8,2612.0,12.201]
[1646925394149,0.00355199,2612.8,2612.7,0.03777418]
[1646925394150,0.00355178,2612.8,2612.7,0.03777418]
[1646925394948,1.10443657,2613.1,2612.7,0.03777418]
[1646925395150,0.07455716,2613.3,2612.7,0.03777418]
[1646925395348,0.00358362,2612.9,2612.7,0.03777418]
[1646925395778,0.00358362,2612.9,2612.3,0.8016416]
[1646925395980,0.00358362,2612.9,2612.4,0.461]
[1646925396179,0.89779068,2613.0,2612.4,1.57291105]
[1646925396384,0.00389584,2612.9,2612.4,0.461]
[1646925396882,0.00389584,2612.9,2612.4,0.53974914]
[1646925397081,0.00389584,2612.9,2612.5,0.06970969]
[1646925397482,0.00389584,2612.9,2612.5,1.20870658]
[1646925397682,0.00389585,2612.8,2612.5,1.13899689]
[1646925397883,0.00389585,2612.8,2612.4,0.461]
[1646925398084,0.00389585,2612.8,2612.1,0.52875826]
[1646925398288,0.00389585,2612.8,2611.8,6.5409]
[1646925398489,0.33125374,2612.8,2611.8,6.5409]
[1646925398996,0.33513437,2612.8,2611.9,2.08863398]
[1646925399191,0.32735789,2612.7,2611.9,3.92886368]
[1646925399431,0.00388063,2612.8,2612.1,0.3838]
[1646925399632,0.00388063,2612.8,2612.3,0.3838]
[1646925399831,0.07587237,2613.3,2612.5,12.1238]
[1646925400036,0.07587237,2613.3,2612.7,12.1238]
[1646925400037,5.716e-05,2613.3,2612.7,12.1238]
[1646925400332,0.02900984,2613.4,2613.3,0.08099926]
[1646925400531,0.02900984,2613.4,2613.3,0.54199926]
[1646925400732,0.28615615,2613.4,2613.3,0.461]
[1646925401134,0.28615615,2613.4,2612.8,0.06965111]
[1646925401331,0.28615615,2613.4,2612.8,0.53065111]
[1646925401332,0.25714631,2613.3,2612.8,0.53065111]
[1646925401538,1.48362522,2613.3,2612.9,1.914]
[1646925401733,0.25714631,2613.2,2612.9,1.914]
[1646925401935,1.22647891,2613.3,2612.9,1.914]
[1646925402234,0.25704785,2613.2,2612.6,0.53467102]
[1646925402635,0.26081506,2613.2,2612.7,1.91416]
[1646925403187,0.26081506,2613.2,2612.8,1.07749685]
[1646925403386,0.26081506,2613.2,2612.7,4.2892832]
[1646925403582,0.25704785,2613.2,2612.7,4.2892832]
[1646925403784,0.02900984,2613.3,2612.9,0.06631282]
[1646925403785,0.00403075,2613.1,2612.9,0.06631282]
[1646925403986,0.00403075,2613.1,2612.7,4.2892832]
[1646925404187,0.00403075,2613.1,2612.9,0.9570941]
[1646925404585,0.25710133,2613.1,2612.9,1.9142241]
[1646925404787,0.02900984,2613.3,2612.9,1.8642241]
[1646925404986,0.02900984,2613.3,2612.9,0.95713]
[1646925404987,0.00403079,2613.0,2612.9,0.95713]
[1646925405187,0.00403079,2613.0,2612.9,2.3750872]
[1646925405785,0.02900984,2613.3,2612.9,2.3750872]
[1646925406185,0.00408203,2613.1,2612.9,2.3750872]
[1646925406585,0.00408203,2613.1,2613.0,0.95698]
[1646925406844,0.00408203,2613.1,2613.0,1.41798]
[1646925407040,0.00408203,2613.1,2613.0,1.71798]
[1646925407238,0.00408203,2613.1,2613.0,5.60178]
[1646925407440,0.03572233,2613.5,2613.2,0.3838]
[1646925407638,0.03572233,2613.5,2613.3,0.8448]
[1646925407838,0.03572233,2613.5,2613.3,1.41785]
[1646925408243,0.0579266,2613.6,2613.4,0.3838]
[1646925408542,0.0579266,2613.6,2613.5,0.8448]
[1646925408741,0.00855038,2614.0,2613.7,12.1238]
[1646925408947,2.1220798,2614.7,2613.9,100.74]
[1646925408948,0.01051542,2614.4,2613.9,100.74]
[1646925409144,0.01710076,2614.3,2614.1,12.1238]
[1646925409349,0.0540312,2614.8,2614.3,92.5]
[1646925409549,0.06118432,2615.3,2614.6,28.8838]
[1646925409550,0.01526444,2615.0,2614.6,28.8838]
[1646925409745,0.01526444,2615.0,2614.7,0.8448]
[1646925409946,0.01526444,2615.0,2614.7,0.461]
[1646925410344,0.97180444,2615.0,2614.7,0.461]
[1646925410588,1.91294,2615.4,2614.7,0.461]
[1646925410589,0.93796261,2615.5,2615.1,24.5]
[1646925410777,1.41053454,2615.7,2615.5,34.0]
[1646925410778,0.00404542,2615.7,2615.5,34.0]
[1646925410979,0.01992672,2615.6,2615.5,0.461]
[1646925411381,0.04335774,2616.0,2615.5,0.461]
[1646925411382,0.06412168,2615.9,2615.5,0.461]
[1646925411985,0.06412168,2615.9,2615.6,0.9560911]
[1646925412181,0.06412168,2615.9,2615.6,1.41706]
[1646925412381,0.06412168,2615.9,2615.6,0.461]
[1646925412382,0.00402944,2615.7,2615.6,0.461]
[1646925412982,1.14414905,2615.7,2615.6,0.461]
[1646925413283,1.14414905,2615.7,2615.1,0.461]
[1646925413482,1.14011961,2615.7,2615.1,0.461]
[1646925413682,1.57186389,2615.7,2614.6,12.3921]
[1646925414081,1.57186389,2615.7,2614.6,13.36173047]
[1646925414082,1.10603701,2615.1,2614.6,13.36173047]
[1646925414327,0.0012678,2615.6,2614.7,0.9563588]
[1646925414540,0.04794428,2615.7,2615.4,0.02328694]
[1646925414732,0.0640599,2615.7,2615.4,0.02328694]
[1646925415333,0.95774143,2615.6,2615.4,0.02328694]
[1646925415733,0.99759487,2615.6,2615.4,0.02328694]
[1646925417247,1.00113566,2615.6,2615.4,0.02328694]
[1646925417433,0.04864157,2615.5,2615.4,0.02328694]
[1646925417735,0.08849501,2615.5,2615.4,0.02328694]
[1646925418382,0.03985344,2615.5,2615.4,0.02328694]
[1646925420185,0.03985344,2615.5,2615.4,0.48428694]
[1646925421182,0.03985344,2615.5,2615.4,1.44163694]
[1646925421583,0.03985344,2615.5,2615.4,0.48548694]
[1646925423237,0.03985344,2615.5,2615.4,15.72548694]
[1646925423536,0.03985344,2615.5,2615.4,0.48548694]
[1646925423737,0.03985344,2615.5,2615.4,1.58883703]
[1646925423938,5.344e-05,2615.5,2615.4,2.54494703]
[1646925424138,5.344e-05,2615.5,2615.4,3.54494703]
[1646925424343,0.05683098,2616.3,2615.5,92.5]
[1646925424541,0.03983396,2616.3,2615.7,12.1238]
[1646925424743,0.15804387,2616.6,2615.9,12.1238]
[1646925424942,0.956,2616.3,2616.0,0.95591]
[1646925425139,0.956,2616.3,2616.1,0.461]
[1646925426589,0.956,2616.3,2615.6,0.461]
[1646925426790,0.95849234,2616.3,2615.6,0.461]
[1646925426991,0.95849234,2616.3,2615.7,0.95612]
[1646925427191,0.95849234,2616.3,2615.7,1.41712]
[1646925427192,1.19432532,2616.1,2615.7,1.41712]
[1646925427395,1.19432532,2616.1,2615.7,1.36712]
[1646925427596,0.95609,2616.2,2615.7,1.36712]
[1646925427793,0.95609,2616.2,2615.7,2.3231868]
[1646925427995,0.00417975,2616.1,2615.8,0.00418031]
[1646925428595,0.00417975,2616.1,2615.8,0.46518031]
[1646925428796,0.95609,2616.2,2615.8,1.4171317]
[1646925428996,0.0195883,2616.5,2616.0,1.19403146]
[1646925429198,0.0195883,2616.5,2616.1,12.392]
[1646925429449,0.0768636,2617.0,2616.1,12.392]
[1646925429450,0.0171753,2617.4,2616.4,95.5]
[1646925429650,0.0171753,2617.4,2617.0,0.3]
[1646925429948,0.0285656,2617.7,2617.2,76.0]
[1646925430156,1.3546974,2618.0,2617.6,3.0]
[1646925430157,0.01838065,2618.0,2617.6,3.0]
[1646925430350,0.0196527,2618.3,2617.7,11.10335565]
[1646925430351,1.0,2618.3,2617.7,11.10335565]
[1646925430548,0.03116151,2618.4,2617.8,0.5277085]
[1646925430750,0.0460423,2618.0,2617.9,0.07127418]
[1646925430950,0.0460423,2618.0,2617.9,0.53227418]
[1646925431153,0.0460423,2618.0,2617.9,0.461]
[1646925432253,0.0460423,2618.0,2617.7,1.9102209]
[1646925432554,0.0460423,2618.0,2617.5,0.461]
[1646925432555,0.95557,2617.9,2617.5,0.461]
[1646925432755,0.95557,2617.9,2617.4,1.9109609]
[1646925432756,0.93623014,2617.8,2617.4,1.9109609]
[1646925432954,0.98113559,2617.8,2617.4,1.9109609]
[1646925433186,0.04433703,2617.7,2617.0,0.461]
[1646925433386,0.95581,2617.5,2616.8,2.3724927]
[1646925433790,0.04263176,2617.4,2616.8,2.3724927]
[1646925434288,0.95581,2617.5,2616.8,2.3724927]
[1646925434289,0.04206333,2617.3,2616.9,0.191]
[1646925434489,0.04206333,2617.3,2617.0,0.461]
[1646925434791,0.00124879,2617.9,2617.0,0.461]
[1646925434792,0.04149491,2617.2,2617.1,2.1774355]
[1646925434988,0.04149491,2617.2,2617.1,2.5884355]
[1646925435192,0.04149491,2617.2,2617.1,2.37208]
[1646925435590,0.04149491,2617.2,2617.1,2.44669954]
[1646925435791,0.04149491,2617.2,2617.1,2.93769954]
[1646925436191,0.04149491,2617.2,2617.1,3.86308]
[1646925436392,0.00124879,2617.8,2617.2,56.5]
[1646925436593,0.95532,2618.0,2617.4,1.91074]
[1646925436836,0.0170747,2618.5,2617.5,0.461]
[1646925437035,0.0170747,2618.5,2617.6,0.1908]
[1646925437036,0.61588632,2618.4,2617.6,0.1908]
[1646925437239,0.03988221,2618.4,2617.7,0.461]
[1646925437445,0.03988221,2618.4,2617.9,0.95502]
[1646925437642,0.0170747,2618.5,2618.2,1.92258869]
[1646925437643,7.47e-05,2618.5,2618.2,1.92258869]
[1646925437840,7.47e-05,2618.5,2618.3,0.6518]
[1646925438047,0.0638707,2618.9,2618.3,0.461]
[1646925438239,0.0638707,2618.9,2617.6,2.8655432]
[1646925438443,0.0638707,2618.9,2618.0,0.5]
[1646925438844,1.91047,2618.7,2618.0,0.5]
[1646925439242,1.91047,2618.7,2618.5,1.0]
[1646925439442,1.91047,2618.7,2618.3,0.461]
[1646925439843,0.95522,2618.8,2618.3,3.326444]
[1646925440044,0.0638707,2618.9,2618.4,0.1908]
[1646925440249,0.0638707,2618.9,2618.5,0.461]
[1646925440445,2.91230064,2619.2,2618.5,0.461]
[1646925440710,2.91230064,2619.2,2618.5,2.64084613]
[1646925440898,2.91230064,2619.2,2618.7,1.9100192]
[1646925441096,0.0043051,2618.8,2618.7,2.3710192]
[1646925441803,5.1e-06,2618.8,2618.7,2.3710192]
[1646925442001,0.13572737,2619.2,2618.7,2.6710192]
[1646925442002,0.7132739,2619.2,2618.7,2.6710192]
[1646925442201,0.0346268,2619.5,2618.9,92.5]
[1646925442404,0.01721767,2619.3,2619.2,7.5]
[1646925442604,0.58949406,2620.0,2619.3,0.20781605]
[1646925442801,0.58949406,2620.0,2619.8,0.9404961]
[1646925443000,0.58949406,2620.0,2619.9,0.461]
[1646925443403,0.0172692,2620.0,2619.9,0.761]
[1646925444340,6.92e-05,2620.0,2619.9,3.6696827]
[1646925444548,6.92e-05,2620.0,2619.9,2.6696827]
[1646925444743,0.04008276,2620.2,2619.9,0.93545674]
[1646925444942,0.04008276,2620.2,2619.8,1.9087254]
[1646925445145,0.04008276,2620.2,2619.3,2.8632241]
[1646925445146,3.54008276,2620.2,2619.3,2.8632241]
[1646925445341,1.18935487,2620.2,2619.4,0.954797]
[1646925445541,0.95484,2620.0,2619.4,0.954797]
[1646925445941,0.95484,2620.0,2619.8,0.0012]
[1646925446142,0.95484,2620.0,2619.4,0.94747928]
[1646925446342,0.95484,2620.0,2619.3,4.3242241]
[1646925446343,0.95484,2620.0,2619.3,3.8632241]
[1646925446545,0.97341616,2619.5,2619.3,1.0]
[1646925446744,0.95484,2620.0,2619.3,1.0]
[1646925447145,0.95484,2620.0,2619.3,1.00198536]
[1646925447745,0.94522405,2619.4,2619.3,1.00198536]
[1646925447947,28.5,2619.3,2618.8,0.05391058]
[1646925448194,0.94522405,2619.4,2617.7,20.37578273]
[1646925448195,63.0,2619.1,2617.7,20.37578273]
[1646925448397,63.0,2619.1,2617.7,0.00794627]
[1646925448398,0.95537,2618.8,2617.7,0.00794627]
[1646925448592,3.5,2618.7,2617.7,0.00794627]
[1646925448792,0.95557,2618.0,2617.7,0.00794627]
[1646925448993,0.00115654,2618.6,2617.7,0.00794627]
[1646925449194,3.25156654,2618.8,2617.4,0.6518]
[1646925449394,3.25156654,2618.8,2617.8,0.1908]
[1646925449395,2.86776654,2618.8,2617.8,0.1908]
[1646925449593,2.86661,2618.8,2617.6,0.73527231]
[1646925449795,2.86776654,2618.8,2617.7,11.81155667]
[1646925449992,2.86776654,2618.8,2617.7,1.9105648]
[1646925449993,0.93779454,2618.4,2617.7,1.9105648]
[1646925450199,1.32159454,2618.4,2617.1,0.08607532]
[1646925450395,4.18825454,2618.4,2617.1,0.08607532]
[1646925450596,4.83923,2618.3,2617.2,0.141]
[1646925450997,1.0515845,2617.3,2617.2,0.141]
[1646925451196,0.95556,2618.0,2617.8,0.63279049]
[1646925452241,1.00701564,2617.9,2617.8,0.63279049]
[1646925452939,0.95556,2618.0,2617.8,0.63279049]
[1646925454141,1.09418267,2617.9,2617.8,0.63279049]
[1646925454340,1.09418267,2617.9,2617.8,0.63711752]
[1646925455042,41.0,2617.8,2617.4,0.0173107]
[1646925455242,0.05611017,2617.6,2617.2,0.02439269]
[1646925455683,0.04649314,2617.6,2617.3,0.01731085]
[1646925455880,1.75964017,2617.8,2617.3,0.01731085]
[1646925456086,1.18066807,2617.5,2617.3,0.01731085]
[1646925456288,0.95574,2617.6,2617.1,0.94726354]
[1646925456686,0.95574,2617.6,2617.4,0.00197983]
[1646925457089,0.04914194,2617.5,2617.4,0.00197983]
[1646925457388,1.04233439,2617.5,2617.4,0.00197983]
[1646925457587,0.95574,2617.6,2617.4,0.00197983]
[1646925457790,0.95574,2617.6,2617.0,0.07946593]
[1646925457989,0.95574,2617.6,2616.6,0.461]
[1646925457990,0.95810196,2617.6,2616.6,0.461]
[1646925458189,0.57544214,2618.6,2617.1,1.9110586]
[1646925458495,9.5572,2619.2,2617.1,1.9110586]
[1646925458496,4.154e-05,2619.3,2618.3,11.74]
[1646925458692,4.154e-05,2619.3,2618.6,11.74]
[1646925458887,4.154e-05,2619.3,2619.2,0.0122792]
[1646925458888,0.57234769,2619.3,2619.2,0.0122792]
[1646925459090,0.04008276,2620.2,2619.8,1.20446319]
[1646925459331,0.04008276,2620.2,2619.9,1.4154146]
[1646925459534,0.04008276,2620.2,2620.0,0.07434021]
[1646925459730,0.04008276,2620.2,2620.1,0.2325827]
[1646925460433,0.04008276,2620.2,2620.1,0.5428827]
[1646925461035,0.04248276,2620.2,2620.1,0.5428827]
[1646925461841,0.04248276,2620.2,2620.1,0.461]
[1646925462443,0.04248276,2620.2,2620.1,0.53108141]
[1646925462643,0.04248276,2620.2,2620.1,0.461]
[1646925462844,0.04248276,2620.2,2620.1,0.54464024]
[1646925463290,0.04248276,2620.2,2620.1,0.53911254]
[1646925464492,0.04248276,2620.2,2620.1,0.83911254]
[1646925464693,0.04248276,2620.2,2620.1,0.53911254]
[1646925464993,0.04248276,2620.2,2620.1,0.48384959]
[1646925465596,0.04248276,2620.2,2620.1,0.39304959]
[1646925465796,0.04248276,2620.2,2620.0,0.02277831]
[1646925466398,0.04248276,2620.2,2620.1,0.461]
[1646925467030,0.04008276,2620.2,2620.1,0.4383]
[1646925467229,0.04008276,2620.2,2620.0,0.02277831]
[1646925467628,0.04008276,2620.2,2620.0,1.62237215]
[1646925467836,0.04008276,2620.2,2620.0,13.36237215]
[1646925468028,0.04008276,2620.2,2620.0,1.62237215]
[1646925468235,0.04008276,2620.2,2620.1,0.95449]
[1646925468434,0.04008276,2620.2,2620.1,1.41549]
[1646925468634,0.04243794,2620.2,2620.1,1.41549]
[1646925469042,0.03647246,2620.2,2620.1,16.95549]
[1646925469236,0.04474166,2620.6,2620.4,0.95428]
[1646925469435,0.04474166,2620.6,2620.5,0.461]
[1646925470036,0.00784886,2620.8,2620.5,0.461]
[1646925470237,0.00784886,2620.8,2620.5,1.7152878]
[1646925470437,0.00784886,2620.8,2620.5,1.4152878]
[1646925470983,0.00784886,2620.8,2620.6,3.5]
[1646925471186,0.01789284,2620.8,2620.7,60.461]
[1646925471383,9.284e-05,2620.8,2620.7,60.461]
[1646925471590,0.03457644,2620.9,2620.8,44.77835801]
[1646925471786,0.00945878,2621.1,2621.0,0.0410958]
[1646925471787,5.878e-05,2621.1,2621.0,0.0410958]
[1646925471985,0.04909026,2621.1,2621.0,12.2420958]
[1646925472183,0.03135724,2621.1,2621.0,0.461]
[1646925472583,5.724e-05,2621.1,2621.0,0.461]
[1646925472788,0.02497172,2621.1,2621.0,3.961]
[1646925472984,0.0195883,2621.6,2621.2,5.5]
[1646925472985,5.756e-05,2621.4,2621.2,5.5]
[1646925473189,5.3936402,2622.6,2621.2,5.5]
[1646925473190,0.0171274,2623.2,2621.7,1.9072956]
[1646925473491,0.03713442,2623.5,2622.9,3.01262791]
[1646925473691,0.0288106,2623.9,2623.4,0.52287325]
[1646925473692,0.07899984,2623.6,2623.4,0.52287325]
[1646925473890,0.0288106,2623.9,2623.5,4.4651299]
[1646925474093,0.056796,2624.1,2623.5,1.4261299]
[1646925474340,0.056796,2624.1,2623.5,8.18088681]
[1646925474539,9.6e-05,2624.1,2623.6,3.5]
[1646925474744,1.02876085,2623.8,2623.7,0.461]
[1646925474945,1.02876085,2623.8,2623.7,1.461]
[1646925474946,0.00437288,2623.8,2623.7,1.461]
[1646925475143,0.00437288,2623.8,2623.7,1.0814662]
[1646925475341,0.00437288,2623.8,2623.3,0.6255]
[1646925475541,0.00437288,2623.8,2623.3,0.1645]
[1646925476142,0.00437284,2623.9,2623.3,0.1645]
[1646925476343,0.00437284,2623.9,2623.3,0.15817494]
[1646925476544,0.00437284,2623.9,2622.9,0.7067]
[1646925476944,25.5,2623.5,2622.1,3.8128648]
[1646925477143,3.5,2623.4,2622.1,3.8128648]
[1646925477344,0.95381,2623.1,2622.1,3.8128648]
[1646925477548,0.95381,2623.1,2622.0,0.9537952]
[1646925477749,0.95496053,2623.1,2622.0,0.9537952]
[1646925477949,0.95381,2623.1,2622.0,0.9537952]
[1646925478195,0.95381,2623.1,2621.8,1.9074522]
[1646925478395,0.95496053,2623.1,2621.7,5.169]
[1646925478596,0.04925873,2623.0,2621.7,5.169]
[1646925478796,0.04925873,2623.0,2621.7,5.24394363]
[1646925478996,3.54925873,2623.0,2621.7,5.169]
[1646925479199,1.06100825,2622.1,2621.7,5.169]
[1646925479401,0.05465625,2622.7,2621.7,5.169]
[1646925479598,0.00424271,2622.5,2621.7,5.169]
[1646925479798,0.00424271,2622.5,2621.7,0.9538981]
[1646925480399,0.08174988,2622.9,2622.0,0.08925386]
[1646925480604,0.00115053,2623.2,2622.1,0.461]
[1646925480798,0.00115053,2623.7,2622.2,0.07084968]
[1646925480997,0.08060278,2622.6,2622.3,0.461]
[1646925481601,0.08060278,2622.6,2622.4,1.0]
[1646925481836,0.95352,2623.7,2622.4,1.461]